Cogmind - Beta 11 @@@ ROGUE MODE // 2022.04.02 @ 14:47:07 Player: SURFACESEEKER Result: Destroyed by S-27 Virus with Autogun Performance ------------- Evolutions (5) 2500 Regions Visited (11) 2200 Robots Destroyed (123) 615 Value Destroyed (5052) 5052 Prototype IDs (30) 600 Alien Tech Used (0) 0 Bonus (1138) 1138 TOTAL SCORE: 12105 Bonus ------- High Alert Combat Kills 343 Follower Combat Kills 495 Aligned with FarCom 300 Cogmind --------- Core Integrity 0/1000 Matter 300/300 Energy 91/100 System Corruption 22% Temperature Cool (0) Movement Walking (120) Location -5/Upper Caves Parts ------- > --- POWER (3) -------- (None) > --- PROPULSION (5) --- Enhanced Flexi-carbon Leg Enhanced Flexi-carbon Leg Enhanced Flexi-carbon Leg > --- UTILITY (6) ------ Advanced Heat Sink Advanced Coolant Injector High-capacity Storage Unit Improved Target Analyzer > --- WEAPON (3) ------- Lance Lance > --- INVENTORY (20) --- Improved Heat Sink Advanced Heat Sink Large Storage Unit Improved Terrain Scan Processor Advanced Particle Charger Advanced ECM Suite Improved Component Analysis Suite Tesla Rifle Proton Cannon Hypervelocity Coil Gun Mass Driver Improved Remote Datajack Lance Lance Peak State ------------ > --- POWER ------------ Fusion Compressor Micro Fission Core Antimatter Reactor > --- PROPULSION ------- Enhanced Flexi-carbon Leg Enhanced Flexi-carbon Leg Enhanced Flexi-carbon Leg Enhanced Flexi-carbon Leg Enhanced Flexi-carbon Leg > --- UTILITY ---------- Advanced Cooling System High-capacity Storage Unit Advanced ECM Suite Phase Shifter Improved Heavy Armor Plating > --- WEAPON ----------- Katana Lance Lance > --- INVENTORY -------- Improved Titanium Leg Enhanced Flexi-carbon Leg Enhanced Flexi-carbon Leg Enhanced Flexi-carbon Leg Enhanced Flexi-carbon Leg Advanced VSS Leg Advanced VSS Leg Improved Heat Sink Advanced Coolant Injector Medium Storage Unit Advanced Particle Charger Improved Kinecellerator Advanced System Shield Improved Component Analysis Suite Tesla Rifle Proton Cannon Coil Gun Mass Driver Lance Lance [Rating: 105] Favorites ----------- Power Ion Engine Engine Ion Engine Power Core Micro Nuclear Core Reactor Antimatter Reactor Propulsion Aluminum Leg Treads Armored Medium Treads Leg Aluminum Leg Wheel Wheel Hover Unit Hover Unit Flight Unit Cesium-ion Thruster Utility High-capacity Storage Unit Device Improved Terrain Scanner Storage High-capacity Storage Unit Processor Advanced Terrain Scan Processor Protection Improved Medium Armor Plating Weapon Katana Energy Gun Small Laser Ballistic Gun Light Assault Rifle Ballistic Cannon Mass Driver Special Weapon Improved Remote Datajack Slashing Weapon Katana Piercing Weapon Lance Build | -11 -10 -10 -10 -9 -8 -7 -6 -6 -6 -5 -5 ------- Run | Scr Mat Min Exi Min Mat Fac Fac Low Low Fac Upp Slots Evolved 10 | . . . . . 4 2 2 . . 2 . Power 2 | . . . . . 1 . . . . 1 . Propulsion 3 | . . . . . 2 . 1 . . . . Utility 4 | . . . . . 1 1 1 . . 1 . Weapon 1 | . . . . . . 1 . . . . . Parts Attached 227 | 7 8 11 1 . 43 52 20 15 1 61 8 Power 33 | 1 . 1 . . 5 4 2 1 . 18 1 Engine 14 | 1 . 1 . . 2 2 2 1 . 4 1 Core 17 | . . . . . 3 2 . . . 12 . Reactor 2 | . . . . . . . . . . 2 . Propulsion 60 | 2 4 4 . . 16 6 4 1 . 18 5 Treads 1 | . . . . . . . . . . 1 . Leg 48 | . . 2 . . 16 6 4 . . 15 5 Wheel 4 | 2 . 2 . . . . . . . . . Hover 6 | . 4 . . . . . . . . 2 . Flight 1 | . . . . . . . . 1 . . . Utility 73 | 2 1 4 1 . 10 24 6 5 . 18 2 Device 54 | 1 1 4 . . 9 15 5 4 . 13 2 Storage 4 | 1 . . 1 . . . . 1 . 1 . Processor 3 | . . . . . . 2 . . . 1 . Hackware . | . . . . . . . . . . . . Protection 12 | . . . . . 1 7 1 . . 3 . Artifact . | . . . . . . . . . . . . Weapon 61 | 2 3 2 . . 12 18 8 8 1 7 . Energy Gun 20 | 2 1 1 . . 4 7 2 1 1 1 . Energy Cannon . | . . . . . . . . . . . . Ballistic Gun 18 | . 2 1 . . 4 3 3 4 . 1 . Ballistic Cannon 4 | . . . . . . 3 . . . 1 . Launcher . | . . . . . . . . . . . . Special Weapon 1 | . . . . . . . . . . 1 . Impact Weapon . | . . . . . . . . . . . . Slashing Weapon 15 | . . . . . 4 5 3 3 . . . Piercing Weapon 3 | . . . . . . . . . . 3 . Special Melee Weapon . | . . . . . . . . . . . . Unidentified Prototypes 5 | . . . . . 2 1 1 . . 1 . Corrupted Parts 1 | . . . . . . . . . . 1 . System Corruption 9 | . . . . . . . . . . 9 . Parts Lost 58 | . . 2 . . 14 5 3 14 . 6 14 Power 12 | . . . . . 2 1 . 3 . 2 4 Propulsion 19 | . . 1 . . 6 1 1 3 . 1 6 Utility 14 | . . . . . 3 2 . 3 . 3 3 Weapon 13 | . . 1 . . 3 1 2 5 . . 1 Highest Loss Streak 8 | . . 2 . . 8 4 3 8 . 5 8 To Critical Strikes 1 | . . . . . . . . 1 . . . Average Slot Usage (%) 82 | . 98 98 100 100 94 98 93 51 31 70 92 Engine 5 | . 14 14 14 14 8 3 5 2 . 1 2 Core 5 | . . . . . 5 10 6 2 . 8 8 Leg 21 | . . 13 28 28 35 29 29 7 . 19 28 Flight 1 | . . . . . . . . 3 6 2 . Device 11 | . 14 14 14 14 16 9 11 8 6 8 21 Storage 7 | . 14 14 14 14 9 7 6 7 6 2 5 Processor 1 | . . . . . . 4 6 1 . 1 5 Protection 2 | . . . . . 1 7 6 1 . 2 . Energy Gun 5 | . 25 6 14 14 7 7 4 1 4 2 . Ballistic Gun 7 | . 2 21 14 14 6 7 10 7 . 1 . Slashing Weapon 3 | . . . . . 3 4 4 3 6 5 5 Piercing Weapon 1 | . . . . . . . . . . 4 11 Naked Turns . | . . . . . . . . . . . . Heaviest Build 117 | 14 15 14 49 49 60 81 79 79 45 117 91 Greatest Support 140 | 20 20 20 20 20 52 72 87 85 5 140 130 Greatest Overweight (x) 20 | . 4 1 2 2 2 1 1 20 8 16 . Average Overweight (x) . | . . . . 2 1 . . 3 8 . . Largest Inventory Capacity 20 | 8 8 8 20 20 20 20 20 20 20 20 20 Average Capacity 16 | 6 8 8 15 20 20 20 20 20 20 12 20 Most Carried 20 | 7 8 8 18 18 20 20 20 20 17 20 19 Average Carried 15 | 1 7 6 11 18 18 19 19 17 17 10 17 Final Capacity 20 | 8 8 8 20 20 20 20 20 20 20 20 20 Final Carried 20 | 7 8 8 18 18 19 20 19 17 17 18 14 Class Distribution -------------------- 49% | Mutant 33% | Scavenger-Mutant 5% | Skirmisher 4% | Generator-Mutant 4% | Scavenger-Skirmisher Dominant Class ---------------- Mutant | -10/Materials Mutant | -10/Mines Mutant | -10/Exiles Mutant | -9/Mines Scavenger-Mutant | -8/Materials Mutant | -7/Factory Scavenger-Mutant | -6/Factory Mutant | -6/Lower Caves Mutant | -6/Lower Caves Scavenger-Mutant | -5/Factory Scavenger-Mutant | -5/Upper Caves Resources | -11 -10 -10 -10 -9 -8 -7 -6 -6 -6 -5 -5 ----------- Run | Scr Mat Min Exi Min Mat Fac Fac Low Low Fac Upp Matter Collected 4079 | 270 90 176 18 15 365 872 275 470 29 1390 109 Remotely . | . . . . . . . . . . . . Salvage Created 5299 | 56 226 288 . . 847 807 513 535 71 1439 517 Parts 281 | 7 23 28 . . 37 38 20 18 1 94 15 Haulers Intercepted 1 | . . . . . . . . . . 1 . Recyclers Shooed 4 | 1 . 1 . . . . 1 . . 1 . Parts Field Recycled . | . . . . . . . . . . . . Retrieved Matter . | . . . . . . . . . . . . Parts Self-Destructed 32 | . . . . . . . . 25 1 . 6 Prevented . | . . . . . . . . . . . . Kills | -11 -10 -10 -10 -9 -8 -7 -6 -6 -6 -5 -5 ------- Run | Scr Mat Min Exi Min Mat Fac Fac Low Low Fac Upp Combat Hostiles Destroyed 99 | . 8 10 . . 10 18 7 13 . 22 11 Melee 35 | . . . . . 5 1 . . . 18 11 Guns 56 | . 8 10 . . 5 14 5 12 . 2 . Cannons 5 | . . . . . . 3 . . . 2 . AOE 2 | . . . . . . . 2 . . . . Classes Destroyed 17 | 1 3 1 . . 3 4 1 . . 4 . Worker 5 | . . . . . . . . . . 5 . Builder 2 | . . . . . . 1 . . . 1 . Tunneler 3 | 2 . . . . 1 . . . . . . Hauler 1 | . . . . . . . . . . 1 . Recycler 4 | . . 1 . . 3 . . . . . . Mechanic 1 | . . . . . . . 1 . . . . Operator 1 | . . . . . . 1 . . . . . Watcher 7 | . 2 . . . 3 . 1 . . 1 . Swarmer 25 | . 6 8 . . . . . 7 . . 4 Grunt 35 | . 2 2 . . 4 10 5 1 . 4 7 Brawler 2 | . . . . . . 1 . 1 . . . Duelist 5 | . . . . . 1 1 1 2 . . . Sentry 9 | . . . . . 2 2 . 2 . 3 . Specialist 7 | . . . . . . . . . . 7 . Hunter 4 | . . . . . 3 1 . . . . . Programmer 11 | . . . . . . 3 1 . . 7 . Behemoth 1 | . . . . . . . . . . 1 . Best Kill Streak 6 | 1 3 3 . . 2 3 5 6 . 3 4 Combat Bots Only 6 | . 3 3 . . 2 3 4 6 . 3 4 Max Kills in Single Turn 2 | 1 1 1 . . 1 1 2 2 . 2 1 Gunslinging 1 | . . . . . . . . 1 . . . Exploded 2 | . . . . . . . 2 . . . . Melee 1 | . . . . . 1 1 . . . 1 1 Uniques/NPCs Destroyed . | . . . . . . . . . . . . Combat | -11 -10 -10 -10 -9 -8 -7 -6 -6 -6 -5 -5 -------- Run | Scr Mat Min Exi Min Mat Fac Fac Low Low Fac Upp Damage Taken 13236 | . 350 443 . . 1402 2355 699 1688 . 4886 1413 Core 2014 | . 151 94 . . 307 210 19 232 . 668 333 Absorbed by Shields 398 | . . . . . . . . . . 398 . Redirected to Shielding 28 | . . . . . . 28 . . . . . Core Remaining (%) 57 | 100 . . . 2 44 70 . . 70 . . Volleys Fired 295 | 7 25 39 . . 50 75 22 42 . 35 . Largest 3 | 2 2 2 . . 2 3 3 3 . 2 . Hottest 130 | 90 100 60 . . 128 130 120 117 . 95 . Shots Fired 579 | 14 50 64 . . 68 165 49 106 . 63 . Gun 529 | 14 50 64 . . 68 141 49 106 . 37 . Cannon 49 | . . . . . . 24 . . . 25 . Launcher . | . . . . . . . . . . . . Special 1 | . . . . . . . . . . 1 . Kinetic 381 | . . 60 . . 41 107 22 96 . 55 . Thermal 149 | 14 50 4 . . 27 43 . 10 . 1 . Explosive . | . . . . . . . . . . . . Electromagnetic 48 | . . . . . . 15 27 . . 6 . Robot Hit Streak 16 | 3 16 11 . . 10 9 11 14 . 11 . Robot Miss Streak 8 | 2 4 5 . . 3 8 3 8 . 5 . Penetration Max 1 | . . . . . . 1 1 1 . 1 . Secondary Targets 6 | . 1 . . . 1 . 2 2 . . . Max Gunslinging Chain 1 | . 1 . . . 1 . 1 1 . . . Shots Hit Robots 511 | 7 30 38 . . 68 119 32 59 3 117 38 Core Hits 231 | 2 14 17 . . 31 63 19 22 1 46 16 Critical Kills 1 | . . . . . . . 1 . . . . Critical Parts Destroyed 3 | . . 1 . . 1 . . 1 . . . Critical Strikes 36 | . 3 1 . . 4 2 2 2 . 18 4 Burn 5 | . 3 . . . . 1 . 1 . . . Destroy 4 | . . 1 . . 1 . 1 1 . . . Corrupt 1 | . . . . . . 1 . . . . . Sever 6 | . . . . . 3 . 1 . . 2 . Impale 20 | . . . . . . . . . . 16 4 Melee Attacks 253 | . . . . . 34 14 6 9 3 133 54 Impact . | . . . . . . . . . . . . Slashing 101 | . . . . . 34 14 6 9 3 31 4 Piercing 152 | . . . . . . . . . . 102 50 Sneak Attacks 14 | . . . . . 4 . . . . 8 2 Combat Hostiles 2 | . . . . . . . . . . . 2 Follow-up Attacks 37 | . . . . . . . . . . 26 11 Damage Inflicted 12787 | 107 372 332 . . 1423 2280 1115 1527 132 4135 1364 Guns 5623 | 107 372 321 . . 522 1763 721 1360 . 457 . Cannons 827 | . . . . . . 389 . . . 438 . Explosions 516 | . . . . . . . 364 . . 152 . Melee 5711 | . . . . . 887 69 30 167 132 3062 1364 Ramming 110 | . . 11 . . 14 59 . . . 26 . Kinetic 4615 | . . 299 . . 258 1555 400 1238 . 865 . Thermal 1913 | 107 372 22 . . 264 490 364 122 . 172 . Explosive . | . . . . . . . . . . . . Electromagnetic 438 | . . . . . . 107 321 . . 10 . Impact . | . . . . . . . . . . . . Slashing 2038 | . . . . . 887 69 30 167 132 690 63 Piercing 3673 | . . . . . . . . . . 2372 1301 Highest Corruption 22 | . 1 1 1 1 . 1 . 9 7 22 22 Average Corruption 7 | . 1 1 1 1 . 1 . 7 7 15 22 Corruption Purged 5 | . . . . . . 3 . 2 . . . Corruption Blocked . | . . . . . . . . . . . . Effects 227 | . 4 7 10 2 . 7 . 59 9 98 31 Message Errors 53 | . . 2 6 1 . 4 . 16 . 19 5 Matter Fused 56 | . 1 3 1 . . 1 . 19 3 20 8 Heat Flow Errors 29 | . 1 . 1 . . . . 6 . 14 7 Energy Discharges 26 | . . 1 1 1 . . . 1 3 18 1 Parts Rejected 3 | . . . . . . . . 1 . 1 1 Data Loss (minor) 29 | . 2 . . . . . . 5 3 11 8 Data Loss (major) 10 | . . . . . . . . 5 . 5 . Misfires 8 | . . 1 . . . 2 . 4 . 1 . Alerts 8 | . . . 1 . . . . 2 . 4 1 Misdirections 2 | . . . . . . . . . . 2 . Weapon Failures 3 | . . . . . . . . . . 3 . Overload Shots . | . . . . . . . . . . . . Overflow Damage 600 | . . . . . 57 . 24 141 24 291 63 Projectiles 29 | . . . . . . . . . . 29 . Explosions 69 | . . . . . . . 24 . . 45 . Melee 502 | . . . . . 57 . . 141 24 217 63 Knockbacks 18 | . . 1 . . . 13 . . . 4 . Impact 1 | . . 1 . . . . . . . . . Kinetic 16 | . . . . . . 13 . . . 3 . Secondary 1 | . . . . . . . . . . 1 . Self-Inflicted Damage 58 | . . 5 . . . . 53 . . . . Shots 1 | . . . . . . . 1 . . . . Rammed 2 | . . 2 . . . . . . . . . Targets Rammed 15 | . . 2 . . 1 10 . . . 2 . Kicked 13 | . . . . . 1 10 . . . 2 . Crushed . | . . . . . . . . . . . . Highest Temperature 566 | 150 566 41 99 . 206 333 401 193 . 392 179 Average Temperature 108 | 61 179 19 53 . 69 106 151 50 . 118 70 Received Heat Transfer 3943 | . 138 168 . . 414 933 210 162 . 1462 456 Effects 34 | . 9 . . . 3 7 3 . . 12 . Shutdowns 10 | . 2 . . . . . 2 . . 6 . Energy Bleed 5 | . 2 . . . . 1 . . . 2 . Interference 15 | . 1 . . . 3 6 1 . . 4 . Damage (minor) 1 | . 1 . . . . . . . . . . Damage (major) 2 | . 2 . . . . . . . . . . Damage (core) 1 | . 1 . . . . . . . . . . Siege Activations . | . . . . . . . . . . . . Robots Corrupted . | . . . . . . . . . . . . Combat Hostiles . | . . . . . . . . . . . . Parts Fried 1 | . . . . . . . 1 . . . . Impact Corruptions . | . . . . . . . . . . . . Robots Melted 1 | . . . . . . . . 1 . . . Combat Hostiles 1 | . . . . . . . . 1 . . . Parts Melted 12 | . 4 . . . 4 3 . 1 . . . Heat Transferred 4054 | 273 1296 50 . . 642 1073 200 333 . 187 . Parts Sabotaged . | . . . . . . . . . . . . Parts Stolen 3 | . . . . . . . . 3 . . . Parts Stripped . | . . . . . . . . . . . . Power Chain Reactions 4 | . . . . . . . 3 . . 1 . Missiles Intercepted . | . . . . . . . . . . . . Alert | -11 -10 -10 -10 -9 -8 -7 -6 -6 -6 -5 -5 ------- Run | Scr Mat Min Exi Min Mat Fac Fac Low Low Fac Upp Peak Influence 880 | 10 273 215 . . 143 216 370 . . 880 . Initial 106 | . 6 106 . . . 55 58 . . 2 . Average 175 | 6 111 110 . . 50 62 254 . . 416 . Maximum Alert Level 3 | . 1 1 . . . 1 1 . . 3 . Low Security (%) 66 | 100 87 90 . 100 100 98 28 . . 4 . Level 1 17 | . 12 9 . . . 1 71 . . 42 . Level 2 13 | . . . . . . . . . . 45 . Level 3 2 | . . . . . . . . . . 7 . Level 4 . | . . . . . . . . . . . . Level 5 . | . . . . . . . . . . . . High Security . | . . . . . . . . . . . . Max Security . | . . . . . . . . . . . . Squads Dispatched 34 | . 1 . . . 5 6 3 . . 19 . Investigation 3 | . 1 . . . . 1 . . . 1 . Extermination 10 | . . . . . . 4 1 . . 5 . Reinforcement 11 | . . . . . 2 1 . . . 8 . Assault 2 | . . . . . . . 1 . . 1 . Garrison 8 | . . . . . 3 . 1 . . 4 . Intercept . | . . . . . . . . . . . . Searches Triggered . | . . . . . . . . . . . . Construction Impeded . | . . . . . . . . . . . . Haulers Reinforced 1 | . . . . . . . . . . 1 . Active Scanning Responses . | . . . . . . . . . . . . Cargo Convoy Interrupts 1 | . . . . . . . . . . 1 . Stealth | -11 -10 -10 -10 -9 -8 -7 -6 -6 -6 -5 -5 --------- Run | Scr Mat Min Exi Min Mat Fac Fac Low Low Fac Upp Distress Signals 5 | . 1 . . . 4 . . . . . . Communications Jammed . | . . . . . . . . . . . . Distress Signals . | . . . . . . . . . . . . Times Spotted 187 | . 10 21 . . 33 24 12 16 . 45 26 Peak Tracking Total 10 | . 4 3 . . 4 5 5 7 . 6 10 Tactical Retreats 19 | . . 6 . . 4 1 . . . 5 3 Traps | -11 -10 -10 -10 -9 -8 -7 -6 -6 -6 -5 -5 ------- Run | Scr Mat Min Exi Min Mat Fac Fac Low Low Fac Upp Traps Triggered 3 | . 2 . . . . 1 . . . . . Indirectly . | . . . . . . . . . . . . Trap Hack Attempts . | . . . . . . . . . . . . Triggered . | . . . . . . . . . . . . Disarmed . | . . . . . . . . . . . . Reprogrammed . | . . . . . . . . . . . . Reused 2 | . . . . . . 2 . . . . . Traps Reconfigurated 4 | . . . . . . 4 . . . . . Traps Extracted . | . . . . . . . . . . . . Installed . | . . . . . . . . . . . . Triggered 8 | . . . . . . 2 . 5 . 1 . Machines | -11 -10 -10 -10 -9 -8 -7 -6 -6 -6 -5 -5 ---------- Run | Scr Mat Min Exi Min Mat Fac Fac Low Low Fac Upp Machines Disabled 12 | . . . . . . 1 2 1 . 8 . Max in Single Turn 3 | . . . . . . 1 1 1 . 3 . Garrison Access 2 | . . . . . . . 1 . . 1 . Machines Sabotaged . | . . . . . . . . . . . . Garrisons Compromised 1 | . . . . . . . . . . 1 . Overloaded Fab Kills . | . . . . . . . . . . . . Hacking | -11 -10 -10 -10 -9 -8 -7 -6 -6 -6 -5 -5 --------- Run | Scr Mat Min Exi Min Mat Fac Fac Low Low Fac Upp Machines Accessed 20 | . 4 . 1 . 2 5 1 . . 7 . Terminals 15 | . 3 . . . 2 4 1 . . 5 . Fabricators 1 | . . . . . . 1 . . . . . Repair Stations . | . . . . . . . . . . . . Recycling Units 2 | . 1 . . . . . . . . 1 . Scanalyzers 1 | . . . . . . . . . . 1 . Garrison Access . | . . . . . . . . . . . . Total Hacks 49 | . 10 . 1 . 11 9 3 . . 15 . Successful 23 | . 6 . 1 . 6 5 . . . 5 . Failed 26 | . 4 . . . 5 4 3 . . 10 . Catastrophic 4 | . . . . . . 1 . . . 3 . Database Lockouts . | . . . . . . . . . . . . Manual 23 | . 9 . 1 . 5 2 . . . 6 . Terminals 40 | . 8 . . . 11 6 3 . . 12 . Fabricators 3 | . . . . . . 3 . . . . . Repair Stations . | . . . . . . . . . . . . Recycling Units 4 | . 2 . . . . . . . . 2 . Scanalyzers 1 | . . . . . . . . . . 1 . Garrison Access . | . . . . . . . . . . . . Terminal Hacks 14 | . 1 . 1 . 5 4 . . . 3 . Record 3 | . . . . . 1 2 . . . . . Prototype ID Bank 1 | . . . . . 1 . . . . . . Open DSF 3 | . . . . . . 2 . . . 1 . Emergency Access Points 1 | . . . . . 1 . . . . . . Zone Layout 5 | . 1 . . . 2 . . . . 2 . EX-Prototype ID Bank 1 | . . . 1 . . . . . . . . Fabricator Hacks 1 | . . . . . . 1 . . . . . Network Status 1 | . . . . . . 1 . . . . . Repair Station Hacks . | . . . . . . . . . . . . Recycling Unit Hacks . | . . . . . . . . . . . . Scanalyzer . | . . . . . . . . . . . . Garrison Access Hacks . | . . . . . . . . . . . . Unauthorized Hacks 8 | . 5 . . . 1 . . . . 2 . Terminals 7 | . 4 . . . 1 . . . . 2 . Track 2 | . 2 . . . . . . . . . . Assimilate 1 | . 1 . . . . . . . . . . Botnet 3 | . 1 . . . 1 . . . . 1 . Detonate 1 | . . . . . . . . . . 1 . Fabricators . | . . . . . . . . . . . . Repair Stations . | . . . . . . . . . . . . Recycling Units 1 | . 1 . . . . . . . . . . Tunnel 1 | . 1 . . . . . . . . . . Scanalyzers . | . . . . . . . . . . . . Garrison Access . | . . . . . . . . . . . . Data Cores Recovered 1 | . . . . . . 1 . . . . . Used 1 | . . . . . . 1 . . . . . Hacking Detections 13 | . 3 . . . 2 3 1 . . 4 . Full Trace Events 2 | . . . . . . 1 . . . 1 . Feedback Events . | . . . . . . . . . . . . Feedback Blocked . | . . . . . . . . . . . . Robot Schematics Acquired . | . . . . . . . . . . . . Robots Built . | . . . . . . . . . . . . Authchips . | . . . . . . . . . . . . Time . | . . . . . . . . . . . . Total Robot Build Rating . | . . . . . . . . . . . . Part Schematics Acquired . | . . . . . . . . . . . . Parts Built . | . . . . . . . . . . . . Authchips . | . . . . . . . . . . . . Time . | . . . . . . . . . . . . Total Part Build Rating . | . . . . . . . . . . . . Parts Repaired . | . . . . . . . . . . . . Time . | . . . . . . . . . . . . Parts Recycled . | . . . . . . . . . . . . Recycled Matter . | . . . . . . . . . . . . Retrieved Matter . | . . . . . . . . . . . . Retrieved Components . | . . . . . . . . . . . . Parts Scanalyzed . | . . . . . . . . . . . . Part Schematics Acquired . | . . . . . . . . . . . . Parts Damaged . | . . . . . . . . . . . . Bothacking | -11 -10 -10 -10 -9 -8 -7 -6 -6 -6 -5 -5 ------------ Run | Scr Mat Min Exi Min Mat Fac Fac Low Low Fac Upp Used RIF Installer . | . . . . . . . . . . . . Robots Hacked . | . . . . . . . . . . . . Non-combat . | . . . . . . . . . . . . Combat . | . . . . . . . . . . . . Robot Hacks Applied . | . . . . . . . . . . . . Relay Couplers Released 1 | . . . . . . . 1 . . . . Machine Destruction 1 | . . . . . . . 1 . . . . Fabnet Peak Effective % . | . . . . . . . . . . . . Robots Rewired 1 | . . . . . . . . . . 1 . Allies Hacked . | . . . . . . . . . . . . Hacks Repelled . | . . . . . . . . . . . . Allies | -11 -10 -10 -10 -9 -8 -7 -6 -6 -6 -5 -5 -------- Run | Scr Mat Min Exi Min Mat Fac Fac Low Low Fac Upp Total Allies 6 | . . . . 5 . . . . . 1 . Largest Group 5 | . . . . 5 5 . . . . 1 . Highest-Rated Group 137 | . . . . 83 83 . . . . 137 . Highest-Rated Ally 137 | . . . . 31 31 . . . . 137 . Total Orders 39 | . . . . . . . . . . 39 . ROAM 7 | . . . . . . . . . . 7 . FOLLOW 1 | . . . . . . . . . . 1 . EXPLORE 9 | . . . . . . . . . . 9 . RETURN 22 | . . . . . . . . . . 22 . Ally Attacks 253 | . . . . . 30 . . . . 223 . Total Damage 5698 | . . . . . 313 . . . . 5385 . Kills 37 | . . . . . 3 . . . . 34 . Allies Corrupted . | . . . . . . . . . . . . Allies Melted . | . . . . . . . . . . . . Intel | -11 -10 -10 -10 -9 -8 -7 -6 -6 -6 -5 -5 ------- Run | Scr Mat Min Exi Min Mat Fac Fac Low Low Fac Upp Robot Analysis Total . | . . . . . . . . . . . . Derelict Logs Recovered 5 | . . 2 . 1 . . . 2 . . . Drone Launches 45 | . . . . . . . . . . 45 . Drone Recoveries 15 | . . . . . . . . . . 15 . Exploration | -11 -10 -10 -10 -9 -8 -7 -6 -6 -6 -5 -5 ------------- Run | Scr Mat Min Exi Min Mat Fac Fac Low Low Fac Upp Turns Passed 15197 | 130 352 1223 1149 528 1943 2513 535 2936 273 2905 710 Spaces Moved 6943 | 116 251 1011 644 204 715 1181 307 797 40 1208 469 Core 9 | 3 1 . . . . . . 5 . . . Treads 5 | . . . . . . . . . . 5 . Legs 5703 | . . 449 644 204 715 1181 307 574 . 1160 469 Wheels 627 | 113 164 350 . . . . . . . . . Hover 334 | . 86 212 . . . . . . . 36 . Flight 265 | . . . . . . . . 218 40 7 . Fastest Speed 35 | 50 80 80 120 260 120 125 122 122 675 35 102 Average Speed 181 | 79 94 105 176 260 191 175 133 346 675 178 105 Slowest Speed 1315 | 80 250 190 260 260 260 197 200 1050 675 1315 120 Overloaded Moves . | . . . . . . . . . . . . Propulsion Burnouts . | . . . . . . . . . . . . Robots Hopped . | . . . . . . . . . . . . Cave-ins Triggered 1 | . . . . . . . . . . 1 . Exploration Rate (%) 39 | 5 37 99 71 28 44 24 7 62 8 37 51 Regions Visited 11 Branch Regions 6 Pre-discovered Areas 3 | . 1 2 . . . . . . . . . Known Exits Taken 1 | . . . . . 1 . . . . . . Unknown Exits Taken 10 | 1 1 1 1 1 . 1 1 1 1 1 . Scrap Searched 3 | . . 1 . 1 . . . . 1 . . Spaces Dug 47 | . . . . . 8 10 5 4 . 17 3 Terrain Destroyed 91 | . . . . . 8 10 12 11 . 47 3 Melee 46 | . . . . . 8 10 5 4 . 16 3 Projectile 20 | . . . . . . . 1 7 . 12 . AOE 25 | . . . . . . . 6 . . 19 . Terrain Rammed . | . . . . . . . . . . . . Walls Destroyed . | . . . . . . . . . . . . Machines Disabled . | . . . . . . . . . . . . Actions | -11 -10 -10 -10 -9 -8 -7 -6 -6 -6 -5 -5 --------- Run | Scr Mat Min Exi Min Mat Fac Fac Low Low Fac Upp Total 8657 | 136 315 1112 659 203 1154 1436 377 882 43 1720 620 Wait 788 | . 21 44 1 . 291 70 . 15 . 241 105 Move 6932 | 115 250 1010 643 203 714 1180 306 796 39 1207 469 Hop . | . . . . . . . . . . . . Pick Up 86 | 7 3 3 9 . 10 12 8 3 . 31 . Fast Attach 99 | 7 7 1 . . 13 16 10 2 1 40 2 Attach 41 | . . 1 . . 10 6 3 7 . 9 5 Detach 16 | . . . . . 1 2 2 1 . 10 . Swap 87 | . 1 9 1 . 20 30 7 6 . 12 1 Drop 97 | . 8 3 5 . 10 21 13 . . 37 . Fire 295 | 7 25 39 . . 50 75 22 42 . 35 . Melee 200 | . . . . . 34 14 6 9 3 96 38 Ram 2 | . . 2 . . . . . . . . . Kick 13 | . . . . . 1 10 . . . 2 . Crush . | . . . . . . . . . . . . Escape Stasis . | . . . . . . . . . . . . Rewire 1 | . . . . . . . . 1 . . . Trap . | . . . . . . . . . . . . Miscellaneous . | . . . . . . . . . . . . Route ------- -11/Scrapyard -10/Materials (discovered 2 exits: [*Mat] / [*Min]) -10/Mines (discovered 3 exits: [*Mat x2] / *Exi) -10/Exiles -9/Mines -8/Materials (discovered 2 exits: *Fac x2) -7/Factory -6/Factory -6/Lower Caves -6/Lower Caves -5/Factory -5/Upper Caves History --------- Turn | Location | Event 22 | -11/Scrapyard | Discovered new exit (range 15) 131 | -11/Scrapyard | Entered Materials 257 | -10/Materials | Discovered new exit (range 16) 274 | -10/Materials | Discovered new exit (range 15) 333 | -10/Materials | Build established: Mutant 371 | -10/Materials | Core integrity fell below 50% 483 | -10/Materials | Entered Mines 512 | -10/Mines | Met a Derelict bent on vengeance 775 | -10/Mines | Build established: Scavenger-Mutant 1015 | -10/Mines | Found a damaged Exp. Sensor Array with a note attached 1017 | -10/Mines | Found Prototype Device 1079 | -10/Mines | Core integrity fell below 20% 1204 | -10/Mines | Learned location of Storage (-9) 1388 | -10/Mines | Build established: Mutant 1399 | -10/Mines | Discovered new exit (range 15) 1430 | -10/Mines | Learned location of Zion (-7) 1432 | -10/Mines | Discovered new exit (range 5) 1699 | -10/Mines | Deemed a non-threat by the Exiles lab entrance 1700 | -10/Mines | Discovered new exit (range 5) 1706 | -10/Mines | Entered Exiles 1735 | -10/Exiles | Met 8R-AWN 1760 | -10/Exiles | Met EX-HEX 1810 | -10/Exiles | Met EX-DEC 1865 | -10/Exiles | Met EX-BIN 1880 | -10/Exiles | Aligned with FarCom system 1882 | -10/Exiles | Given EX-Vault access code 1922 | -10/Exiles | Opened EX-Vault 1951 | -10/Exiles | Found Trap Reconfigurator 1955 | -10/Exiles | Found Skeleton Box 2021 | -10/Exiles | Warned to stay clear of 0b10 Research branches 2374 | -10/Exiles | Found Army-in-a-Box 2834 | -10/Exiles | Discovered new exit (range 10) 2855 | -10/Exiles | Stole three prototypes: Trap Reconfigurator, Skeleton Box, Army-in-a-Box 2855 | -10/Exiles | Entered Mines 2985 | -9/Mines | Learned location of 1 exit from Materials 3079 | -9/Mines | Found a hidden stash of uninstalled traps 3344 | -9/Mines | Discovered new exit (range 8) 3368 | -9/Mines | Assisted by bots powering up and referring to "LRC-V3" 3383 | -9/Mines | Entered Materials 3383 | -8/Materials | Accompanied by 5 allies 3383 | -8/Materials | Evolved 4 slots: Power x1, Propulsion x2, Utility x1 3383 | -8/Materials | Identified Exp. Sensor Array 3384 | -8/Materials | Identified exit to Factory 3388 | -8/Materials | Led the pair of lost Derelicts to an unsafe place 3821 | -8/Materials | Build established: Scavenger-Skirmisher 4259 | -8/Materials | Build established: Scavenger-Mutant 4437 | -8/Materials | Garrison activated, responded to threat 4467 | -8/Materials | Lost 8 parts (2p3n1u2w) 4873 | -8/Materials | Core integrity fell below 50% 5247 | -8/Materials | Discovered exit to Factory (range 5) 5326 | -8/Materials | Entered Factory 5326 | -7/Factory | Evolved 2 slots: Utility x1, Weapon x1 5328 | -7/Factory | FarCom data flow suspended 6345 | -7/Factory | Build established: Mutant 6476 | -7/Factory | Lost 4 parts (1n2u1w) 7676 | -7/Factory | Discovered new exit (range 4) 7750 | -7/Factory | Build established: Scavenger-Mutant 7839 | -7/Factory | Entered another Factory area 7839 | -6/Factory | Evolved 2 slots: Propulsion x1, Utility x1 7925 | -6/Factory | Garrison activated, responded to threat 7988 | -6/Factory | Lost 3 parts (1n2w) 8355 | -6/Factory | Discovered new exit (range 12) 8374 | -6/Factory | Entered Lower Caves 8433 | -6/Lower Caves | Learned Factory trap positions 8446 | -6/Lower Caves | Carbon-fiber Leg stolen by Master Thief 8469 | -6/Lower Caves | Imp. Heat Sink stolen by Master Thief 8472 | -6/Lower Caves | Carbon-fiber Leg stolen by Master Thief 8642 | -6/Lower Caves | Spotted B-75 Beast 8756 | -6/Lower Caves | Build established: Mutant 9299 | -6/Lower Caves | Attracted the attention of an 0b10 outpost 9382 | -6/Lower Caves | Lost 5 parts (1p2n2u) 9600 | -6/Lower Caves | Build established: Skirmisher 9762 | -6/Lower Caves | Attracted the attention of an 0b10 checkpoint 9818 | -6/Lower Caves | Lost 8 parts (2p1n1u4w) 10054 | -6/Lower Caves | Build established: Mutant 10218 | -6/Lower Caves | Learned Factory interactive machine intel 11216 | -6/Lower Caves | Discovered new exit (range 11) 11223 | -6/Lower Caves | Encountered a Warlord checkpoint 11310 | -6/Lower Caves | Entered another Lower Caves area 11441 | -6/Lower Caves | Discovered new exit (range 5) 11583 | -6/Lower Caves | Entered Factory 11583 | -5/Factory | Evolved 2 slots: Power x1, Utility x1 11584 | -5/Factory | Loaded intel: 96 trap records 11585 | -5/Factory | Loaded intel: 52 interactive machine locations 11654 | -5/Factory | Garrison activated, responded to threat 11812 | -5/Factory | Crushed by falling debris 12064 | -5/Factory | System corruption reached 10% 12345 | -5/Factory | Build established: Scavenger-Mutant 12524 | -5/Factory | Cargo convoy interrupted 12973 | -5/Factory | Spotted B-75 Beast 13005 | -5/Factory | Destroyed B-75 Beast 13303 | -5/Factory | Build established: Mutant 14333 | -5/Factory | Build established: Generator-Mutant 14412 | -5/Factory | Core integrity fell below 50% 14441 | -5/Factory | Discovered new exit (range 12) 14450 | -5/Factory | Lost 5 parts (1p1n3u) 14480 | -5/Factory | Garrison activated, responded to threat 14488 | -5/Factory | Entered Upper Caves 14754 | -5/Upper Caves | Build established: Scavenger-Mutant 15000 | -5/Upper Caves | Core integrity fell below 20% 15049 | -5/Upper Caves | Lost 8 parts (2p4n2u) 15198 | -5/Upper Caves | Attracted the attention of an 0b10 checkpoint 15198 | -5/Upper Caves | Destroyed by S-27 Virus with Autogun Last Messages --------------- 15084_ System corrupted: Component data lost. 15100_ System corrupted: Heat flow error (+161). 15143_ System corrupted: Heat flow error (+102). 15166_ System corrupted: Matter fused (-9). 15177_ Adv. VSS Leg destroyed. 15177_ Enh. Flexi-carbon Leg destroyed. 15181_ System corrupted: Matter fused (-10). 15183_ Adv. Heat Sink destroyed. 15183_ Lance follow-up attack on S-27 Virus. 15183_ S-27 Virus destroyed. 15190_ Lgt. Angular Momentum Engine destroyed. 15191_ Destroyed Unknown Flight Unit. 15191_ Katana destroyed. 15194_ Lance follow-up attack on S-27 Virus. 15194_ S-27 Virus destroyed. 15196_ Unknown Flight Unit fries itself beyond repair. 15197_ Lance follow-up attack on S-27 Virus. 15197_ S-27 Virus destroyed. 15198_ Y-64 Sentinel: "INTERCEPTING UNREGISTERED DERELICT." 15198_ Autogun fries itself beyond repair. Map ----- +----------------------------------------------------+ | ?????????????????????????????????????????????????? | | ?????????????????????????????????????????????????? | | ?????????????????????????????????????????????????? | | ?????????????????????????????????????????????????? | | ?????????????????????????????????????????????????? | | ?????????????????????????????????????????????????? | | ?????????????????????????????????????????????????? | | ?????????????????????????????????????????????????? | | ?????????????????????????????????????????????????? | | ?????????????????????????????????????????????????? | | ?????????????????????????????????????????????????? | | ?????????????????????????????????????????????????? | | ?????????????????????????????????????????????????? | | ?????????????????????????? #???????????????????? | | ?????????????????????????? #???????????????????? | | ?????????????????????????? #???????????????????? | | ?????????????????????????? #???????????????????? | | ?????????????????????????? ????????????????????? | | ?????????????????????????? ????????????????????? | | ?????????????????????????? ????????????????????? | | ?????????????????????????# #????????????????????? | | ?????????????????????????# g#????????????????????? | | ?????????????????????????# #?????? %???????????? | | ???????????????????????###Y=#????? #??????????? | | ?????????????????????### #%s##??? % ##????????? | | ????????????????????## [@[ ##? % #????????? | | ??????????????????### %% ## % #????????? | | ?????????????????## sss % % #???????? | | ?????????????????# %%%% ???????? | | ?????????????????# % ???????? | | ?????????????????# #???????? | | ????????????????## ##????????? | | ????????????????# ### ##?????????? | | ????????????????# ####?? #??????????? | | ?????????? #### ##??? % % ?????????? | | ?????????? ####% % ????????? | | ?????????? ????????? | | ?????????? ### ????????? | | ???????????? ???### % ????????? | | ???????????????????## % ????????? | | ????????????????????# % ????????? | | ????????????????????## ## % ## ?????????? | | ?????????????????????##?# # = #???????????? | | ????????????????????????# ## %% #??????????? | | ????????????????????????# #? #?????????? | | ????????????????????????# #### % ??????????? | | ????????????????????????# #?# ??????????? | | ????????????????????????# #??## # ??????????? | | ?????????#####??????????### #???? #????????????? | | ?????????# ##??????????## #??????#????????????? | +----------------------------------------------------+ Best States ------------- Heat Dissipation 78 Coolant Potential 100 Energy Generation 65 Energy Capacity 745 Matter Stores 325 Matter Capacity 450 Sight Range 16 Robot Scan Range 16 Terrain Scan Range 16 Terrain Scan Density 210 ECM Strength 2 Armor Coverage 1200 Resistance: EM 25 Utility Shielding 66 Phase Shifting 5 Evasion (%) 60 Target Analysis 6 Recoil Reduction 1 Particle Charging 25 Item Schematics ----------------- None Robot Schematics ------------------ None Fabricated ------------ Nothing Alien Tech Used ----------------- None Achievements -------------- None Challenges ------------ None Game ------ Seed GravitonFlakDetector Manual? 0 Play Time 02:40:47 Cumulative 179.8 hours Start 2022.03.26 @ 12:13:12 End 2022.04.02 @ 14:47:07 Sessions 7 Manual Loads 0 Difficulty Rogue Special Mode None Game No. 123 Rogue 123 Adventurer 0 Explorer 0 Win Type - Total 0 Types 0/0/0/0/0/0/0/0/0 Lore% 40 Gallery% 57 Achievement% 43 Wizard Run 0 Options --------- ASCII 0 Keyboard 1 Movement Numpad Keybinds 0 Fullscreen 1 Font 14/Terminus Map View 72x54 Tactical HUD 1 Map Filters NONE Filters NONE Steam 1 RUN: af11b85c-046c-44e0-a243-f619f08e57da